Cogmind - Beta 13 @@@ ROGUE MODE // 2024.07.09 @ 17:53:45 Player: Acklord Result: Destroyed by D-53 Grenadier with Mini Grenade Launcher Performance ------------- Evolutions (0) 0 Regions Visited (4) 800 Robots Destroyed (13) 65 Value Destroyed (191) 191 Prototype IDs (1) 20 Alien Tech Used (0) 0 Bonus (0) 0 TOTAL SCORE: 1076 Bonus ------- None Cogmind --------- Core Integrity 0/250 Matter 300/300 Energy 100/100 System Corruption 3% Temperature Cool (0) Movement Core (200) Ox3 Location -9/Mines Parts ------- > --- POWER (1) -------- (None) > --- PROPULSION (2) --- (None) > --- UTILITY (2) ------ Medium Storage Unit > --- WEAPON (2) ------- (None) > --- INVENTORY (10) --- Light Treads Light Treads Improved Heat Sink Experimental Sensor Array Medium Laser Light Assault Rifle Mining Laser Peak State ------------ > --- POWER ------------ Light Ion Engine > --- PROPULSION ------- Aluminum Leg Aluminum Leg > --- UTILITY ---------- Medium Storage Unit Experimental Sensor Array > --- WEAPON ----------- Beam Rifle Heavy Assault Rifle > --- INVENTORY -------- Light Treads Light Treads Improved Heat Sink Large Matter Pod Medium Laser Light Assault Rifle Mining Laser [Rating: 17] Favorites ----------- Power Light Ion Engine Engine Light Ion Engine Propulsion Aluminum Leg Leg Aluminum Leg Utility Medium Storage Unit Device Experimental Sensor Array Storage Medium Storage Unit Weapon Beam Rifle Energy Gun Beam Rifle Ballistic Gun Heavy Assault Rifle Build | -11 -10 -10 -10 -9 ------- Run | Yrd Mat Min Exi Min Slots Evolved . | . . . . . Power . | . . . . . Propulsion . | . . . . . Utility . | . . . . . Weapon . | . . . . . Parts Attached 16 | 5 6 4 . 1 Power 2 | 1 1 . . . Engine 2 | 1 1 . . . Core . | . . . . . Reactor . | . . . . . Propulsion 3 | 2 . 1 . . Treads . | . . . . . Leg 3 | 2 . 1 . . Wheel . | . . . . . Hover . | . . . . . Flight . | . . . . . Utility 5 | . 1 3 . 1 Device 1 | . . 1 . . Storage 4 | . 1 2 . 1 Processor . | . . . . . Hackware . | . . . . . Protection . | . . . . . Artifact . | . . . . . Weapon 6 | 2 4 . . . Energy Gun 2 | 1 1 . . . Energy Cannon . | . . . . . Ballistic Gun 4 | 1 3 . . . Ballistic Cannon . | . . . . . Launcher . | . . . . . Special Weapon . | . . . . . Impact Weapon . | . . . . . Slashing Weapon . | . . . . . Piercing Weapon . | . . . . . Special Melee Weapon . | . . . . . Unidentified Prototypes 1 | . . 1 . . Parts Lost 6 | . . . . 6 Power 1 | . . . . 1 Propulsion 2 | . . . . 2 Utility 1 | . . . . 1 Weapon 2 | . . . . 2 Highest Loss Streak 6 | . . . . 6 To Critical Strikes . | . . . . . Average Slot Usage (%) 93 | . 83 98 100 82 Engine 13 | . 14 14 14 9 Leg 27 | . 28 28 28 24 Device 3 | . . 2 14 3 Storage 20 | . 12 23 14 21 Energy Gun 13 | . 14 14 14 12 Ballistic Gun 13 | . 14 14 14 9 Naked Turns . | . . . . . Heaviest Build 22 | 6 19 22 20 22 Greatest Support 20 | 20 20 20 20 20 Greatest Overweight (x) 3 | . . 1 . 3 Average Overweight (x) . | . . . . . Largest Inventory Capacity 10 | 5 10 10 10 10 Average Capacity 9 | 5 9 9 10 10 Most Carried 7 | 3 6 7 7 7 Average Carried 5 | . 4 5 7 7 Final Capacity 10 | 5 10 10 10 10 Final Carried 7 | . 5 7 7 7 Class Distribution -------------------- 100% | Mutant Dominant Class ---------------- Mutant | -10/Materials Mutant | -10/Mines Mutant | -10/Exiles Mutant | -9/Mines Resources | -11 -10 -10 -10 -9 ----------- Run | Yrd Mat Min Exi Min Matter Collected 543 | 187 97 259 . . Remotely . | . . . . . Salvage Created 267 | . 97 170 . . Parts 28 | . 12 16 . . Haulers Intercepted . | . . . . . Recyclers Shooed 1 | . 1 . . . Parts Field Recycled . | . . . . . Retrieved Matter . | . . . . . Parts Self-Destructed . | . . . . . Prevented . | . . . . . Kills | -11 -10 -10 -10 -9 ------- Run | Yrd Mat Min Exi Min Combat Hostiles Destroyed 13 | . 6 7 . . Guns 13 | . 6 7 . . Classes Destroyed 2 | . 1 1 . . Swarmer 11 | . 6 5 . . Grunt 2 | . . 2 . . Best Kill Streak 6 | . 6 3 . . Combat Bots Only 6 | . 6 3 . . Max Kills in Single Turn 2 | . 2 1 . . Gunslinging 1 | . 1 . . . Exploded . | . . . . . Melee . | . . . . . Uniques/NPCs Destroyed . | . . . . . Combat | -11 -10 -10 -10 -9 -------- Run | Yrd Mat Min Exi Min Hostile Shots Fired 77 | . 18 14 . 45 Missed 25 | . 5 5 . 15 Damage Taken 944 | . 110 98 . 736 Core 286 | . 18 . . 268 Absorbed by Shields . | . . . . . Core Remaining (%) 100 | 100 . . . . Volleys Fired 15 | . 5 10 . . Largest 2 | . 2 2 . . Hottest 79 | . 79 79 . . Shots Fired 30 | . 10 20 . . Gun 30 | . 10 20 . . Cannon . | . . . . . Launcher . | . . . . . Special . | . . . . . Kinetic 15 | . 5 10 . . Thermal 15 | . 5 10 . . Explosive . | . . . . . Electromagnetic . | . . . . . Robot Hit Streak 11 | . 2 11 . . Robot Miss Streak 1 | . 1 1 . . Penetration Max . | . . . . . Secondary Targets 2 | . 1 1 . . Max Gunslinging Chain 1 | . 1 1 . . Shots Hit Robots 22 | . 6 16 . . Core Hits 16 | . 6 10 . . Critical Kills . | . . . . . Critical Parts Destroyed . | . . . . . Critical Strikes 1 | . 1 . . . Burn 1 | . 1 . . . Melee Attacks . | . . . . . Impact . | . . . . . Slashing . | . . . . . Piercing . | . . . . . Sneak Attacks . | . . . . . Combat Hostiles . | . . . . . Follow-up Attacks . | . . . . . Damage Inflicted 339 | . 108 231 . . Guns 336 | . 108 228 . . Cannons . | . . . . . Explosions . | . . . . . Melee . | . . . . . Ramming 3 | . . 3 . . Kinetic 207 | . 79 128 . . Thermal 129 | . 29 100 . . Explosive . | . . . . . Electromagnetic . | . . . . . Impact . | . . . . . Slashing . | . . . . . Piercing . | . . . . . Highest Corruption 3 | . . . . 3 Average Corruption 3 | . . . . 3 Corruption Purged . | . . . . . Corruption Blocked . | . . . . . Effects 1 | . . . . 1 Energy Discharges 1 | . . . . 1 Overload Shots . | . . . . . Overflow Damage . | . . . . . Projectiles . | . . . . . Explosions . | . . . . . Melee . | . . . . . Knockbacks . | . . . . . Impact . | . . . . . Kinetic . | . . . . . Secondary . | . . . . . Self-Inflicted Damage . | . . . . . Shots . | . . . . . Rammed . | . . . . . Targets Rammed 1 | . . 1 . . Kicked 1 | . . 1 . . Crushed . | . . . . . Highest Temperature 109 | . 90 109 . 55 Average Temperature 44 | . 47 46 . 20 Received Heat Transfer 259 | . . 39 . 220 Siege Activations . | . . . . . Robots Corrupted . | . . . . . Combat Hostiles . | . . . . . Parts Fried . | . . . . . Impact Corruptions . | . . . . . Robots Melted . | . . . . . Combat Hostiles . | . . . . . Parts Melted . | . . . . . Heat Transferred 407 | . 148 259 . . Parts Sabotaged . | . . . . . Parts Stolen . | . . . . . Parts Stripped . | . . . . . Power Chain Reactions . | . . . . . Alert | -11 -10 -10 -10 -9 ------- Run | Yrd Mat Min Exi Min Peak Influence 224 | . 140 224 . . Initial 54 | . . 54 . . Average 83 | . 47 132 . . Maximum Alert Level 1 | . . 1 . . Low Security (%) 91 | 100 100 85 . 100 Level 1 8 | . . 14 . . Level 2 . | . . . . . Level 3 . | . . . . . Level 4 . | . . . . . Level 5 . | . . . . . High Security . | . . . . . Max Security . | . . . . . Squads Dispatched . | . . . . . Investigation . | . . . . . Extermination . | . . . . . Reinforcement . | . . . . . Assault . | . . . . . Garrison . | . . . . . Intercept . | . . . . . Searches Triggered . | . . . . . Construction Impeded . | . . . . . Haulers Reinforced . | . . . . . Active Scanning Responses . | . . . . . Cargo Convoy Interrupts . | . . . . . Stealth | -11 -10 -10 -10 -9 --------- Run | Yrd Mat Min Exi Min Distress Signals . | . . . . . Communications Jammed . | . . . . . Distress Signals . | . . . . . Times Spotted 30 | . 6 7 . 17 Peak Tracking Total 15 | . 6 3 . 15 Tactical Retreats 1 | . . . . 1 Traps | -11 -10 -10 -10 -9 ------- Run | Yrd Mat Min Exi Min Traps Triggered . | . . . . . Indirectly . | . . . . . Trap Hack Attempts . | . . . . . Triggered . | . . . . . Disarmed . | . . . . . Reprogrammed . | . . . . . Reused . | . . . . . Traps Extracted . | . . . . . Installed . | . . . . . Triggered . | . . . . . Machines | -11 -10 -10 -10 -9 ---------- Run | Yrd Mat Min Exi Min Machines Disabled . | . . . . . Max in Single Turn . | . . . . . Machines Repaired . | . . . . . Machines Dismantled . | . . . . . Machines Sabotaged . | . . . . . Overloaded Fab Kills . | . . . . . Hacking | -11 -10 -10 -10 -9 --------- Run | Yrd Mat Min Exi Min Machines Accessed 1 | . 1 . . . Terminals 1 | . 1 . . . Fabricators . | . . . . . Repair Stations . | . . . . . Recycling Units . | . . . . . Scanalyzers . | . . . . . Garrison Access . | . . . . . Total Hacks 1 | . 1 . . . Successful 1 | . 1 . . . Failed . | . . . . . Catastrophic . | . . . . . Database Lockouts . | . . . . . Manual . | . . . . . Terminals 1 | . 1 . . . Fabricators . | . . . . . Repair Stations . | . . . . . Recycling Units . | . . . . . Scanalyzers . | . . . . . Garrison Access . | . . . . . Terminal Hacks 1 | . 1 . . . Record 1 | . 1 . . . Fabricator Hacks . | . . . . . Repair Station Hacks . | . . . . . Recycling Unit Hacks . | . . . . . Scanalyzer . | . . . . . Garrison Access Hacks . | . . . . . Unauthorized Hacks . | . . . . . Terminals . | . . . . . Fabricators . | . . . . . Repair Stations . | . . . . . Recycling Units . | . . . . . Scanalyzers . | . . . . . Garrison Access . | . . . . . Data Cores Recovered . | . . . . . Used . | . . . . . Hacking Detections . | . . . . . Full Trace Events . | . . . . . Feedback Events . | . . . . . Feedback Blocked . | . . . . . Robot Schematics Acquired . | . . . . . Robots Built . | . . . . . Authchips . | . . . . . Time . | . . . . . Total Robot Build Rating . | . . . . . Part Schematics Acquired . | . . . . . Parts Built . | . . . . . Authchips . | . . . . . Time . | . . . . . Total Part Build Rating . | . . . . . Parts Repaired . | . . . . . Time . | . . . . . Parts Recycled . | . . . . . Recycled Matter . | . . . . . Retrieved Matter . | . . . . . Retrieved Components . | . . . . . Parts Scanalyzed . | . . . . . Part Schematics Acquired . | . . . . . Parts Damaged . | . . . . . Bothacking | -11 -10 -10 -10 -9 ------------ Run | Yrd Mat Min Exi Min Used RIF Installer . | . . . . . Robots Hacked . | . . . . . Non-combat . | . . . . . Combat . | . . . . . Robot Hacks Applied . | . . . . . Relay Couplers Released . | . . . . . Fabnet Peak Effective % . | . . . . . Robots Rewired . | . . . . . Allies Hacked . | . . . . . Hacks Repelled . | . . . . . Allies | -11 -10 -10 -10 -9 -------- Run | Yrd Mat Min Exi Min Total Allies 3 | . . . . 3 Largest Group 3 | . . . . 3 Highest-Rated Group 40 | . . . . 40 Highest-Rated Ally 16 | . . . . 16 Total Orders . | . . . . . Ally Attacks 9 | . . . . 9 Total Damage 115 | . . . . 115 Kills . | . . . . . Allies Corrupted . | . . . . . Allies Melted . | . . . . . Intel | -11 -10 -10 -10 -9 ------- Run | Yrd Mat Min Exi Min Robot Analysis Total . | . . . . . Derelict Logs Recovered . | . . . . . Drone Launches . | . . . . . Drone Recoveries . | . . . . . Exploration | -11 -10 -10 -10 -9 ------------- Run | Yrd Mat Min Exi Min Turns Passed 741 | 66 153 384 47 91 Spaces Moved 456 | 52 101 202 40 61 Core 11 | 8 . . . 3 Treads . | . . . . . Legs 445 | 44 101 202 40 58 Wheels . | . . . . . Hover . | . . . . . Flight . | . . . . . Fastest Speed 50 | 50 120 120 120 120 Average Speed 140 | 109 120 161 120 146 Slowest Speed 200 | 120 120 190 120 200 Overloaded Moves . | . . . . . Propulsion Burnouts . | . . . . . Robots Hopped . | . . . . . Cave-ins Triggered 1 | . . . . 1 Exploration Rate (%) 19 | 3 30 33 9 23 Regions Visited 4 Branch Regions 3 Pre-discovered Areas . | . . . . . Known Exits Taken . | . . . . . Unknown Exits Taken 4 | 1 1 1 1 . Scrap Searched 1 | . . 1 . . Spaces Dug . | . . . . . Terrain Destroyed . | . . . . . Melee . | . . . . . Projectile . | . . . . . AOE . | . . . . . Terrain Rammed . | . . . . . Walls Destroyed . | . . . . . Machines Disabled . | . . . . . Actions | -11 -10 -10 -10 -9 --------- Run | Yrd Mat Min Exi Min Total 520 | 61 121 237 39 62 Wait 12 | . . 12 . . Move 452 | 51 100 201 39 61 Hop . | . . . . . Pick Up 20 | 5 8 7 . . Fast Attach . | . . . . . Attach 7 | 5 1 1 . . Detach . | . . . . . Swap 9 | . 5 3 . 1 Drop 4 | . 2 2 . . Fire 15 | . 5 10 . . Melee . | . . . . . Ram . | . . . . . Kick 1 | . . 1 . . Crush . | . . . . . Escape Stasis . | . . . . . Rewire . | . . . . . Trap . | . . . . . Miscellaneous . | . . . . . Route ------- -11/Scrapyard -10/Materials -10/Mines -10/Exiles -9/Mines History --------- Turn | Location | Event 4 | -11/Scrapyard | Discovered new exit (range 16) 67 | -11/Scrapyard | Entered Materials 161 | -10/Materials | Discovered new exit (range 6) 220 | -10/Materials | Entered Mines 228 | -10/Mines | Met a Derelict bent on vengeance 314 | -10/Mines | Build established: Mutant 519 | -10/Mines | Found a damaged Exp. Sensor Array with a note attached 523 | -10/Mines | Found Prototype Device 524 | -10/Mines | Identified Exp. Sensor Array 598 | -10/Mines | Deemed a non-threat by the Exiles lab entrance 599 | -10/Mines | Discovered new exit (range 5) 604 | -10/Mines | Entered Exiles 604 | -10/Exiles | Found Exiles lab destroyed 638 | -10/Exiles | Discovered new exit (range 14) 651 | -10/Exiles | Entered Mines 657 | -9/Mines | Assisted by bots powering up and referring to "LRC-V3" 685 | -9/Mines | Assembled infested the area 690 | -9/Mines | Assisted by a Guerilla fighting off Assembled 733 | -9/Mines | Core integrity fell below 50% 736 | -9/Mines | Lost 4 allies 740 | -9/Mines | Crushed by falling debris 741 | -9/Mines | Core integrity fell below 20% 742 | -9/Mines | Destroyed by D-53 Grenadier with Mini Grenade Launcher Last Messages --------------- as-54951 destroyed. as-34633 destroyed. as-66834 destroyed. Beam Rifle destroyed. Critical hit (Burn: +80). The unstable cave ceiling collapses. as-29695 destroyed. as-31231 destroyed. as-87000 destroyed. as-33829 destroyed. as-49202 destroyed. as-41225 destroyed. Aluminum Leg destroyed. The unstable cave ceiling collapses. as-15294 destroyed. as-20460 destroyed. The unstable cave ceiling collapses. Crushed by falling debris. [Achievement: Unlikely Earthworm] The unstable cave ceiling collapses. Map ----- +----------------------------------------------------+ | ?????????????????????????????????????????????????? | | ?????????????????????????????????????????????????? | | ?????????????????????????????????????????????????? | | ?????????????????????????????????????????????????? | | ?????????????????????????????????????????????????? | | ?????????????????????????????????????????????????? | | ?????????????????????????????????????????????????? | | ?????????????????????????????????????????????????? | | ????????????????????????? ???????????????????????? | | ????????????????????????? ?? ???????????????????? | | ????????????????????????? ????????????????? | | ????????????????????????? ???????????????? | | ?####???????????????????? ## #???????????????? | | ## ##?###??????????????? # # ????????????????? | | ## ##????????????## #????????????????? | | #???????????## #????????????????? | | #??????????## ##???????????????? | | "### ##?????????## ##??????????????? | | ##?# ####??????##?## ##?????????????? | | ???# #?????##### ## %##????????????? | | ???# #??## # d ####?????????? | | ???# ### #?????????? | | ???# % % d #????????? | | ???# #???????????????? | | ???## ### # # ##???????????????? | | ????# #?? @ #????????????????????? | | ???? #?? ##????????????????????? | | ???####?# ###?????????????????????? | | ????????# # ########???????????????????????? | | ????????## ###???????????????????????????????? | | ?????????# #?????????????????????????????????? | | ?????????# #?????????????????????????????????? | | ?????????# ##?????????????????????????????????? | | ?????????# ##??????????????????????????????????? | | ?????????# ##???????????????????????????????????? | | ?????????# #????????????????????????????????????? | | ?????????# ?????????????????????????????????????? | | ?????????###?????????????????????????????????????? | | ?????????????????????????????????????????????????? | | ?????????????????????????????????????????????????? | | ?????????????????????????????????????????????????? | | ?????????????????????????????????????????????????? | | ?????????????????????????????????????????????????? | | | | | | | | | | | | | | | +----------------------------------------------------+ Best States ------------- Heat Dissipation 25 Energy Generation 10 Energy Capacity 125 Matter Stores 450 Matter Capacity 450 Sight Range 16 Robot Scan Range 20 Terrain Scan Density 10 Evasion (%) 55 Item Schematics ----------------- None Robot Schematics ------------------ None Fabricated ------------ Nothing Alien Tech Used ----------------- None Achievements -------------- Unlikely Earthworm Challenges ------------ None Game ------ Seed PowerKineticArmor Manual? 0 Play Time 00:16:08 Cumulative 4.2 hours Start 2024.07.09 @ 17:37:37 End 2024.07.09 @ 17:53:45 Sessions 1 Manual Loads 0 Difficulty Rogue Special Mode None Game No. 5 Rogue 5 Adventurer 0 Explorer 0 Win Type - Total 0 Types 0/0/0/0/0/0/0/0/0 Lore% 2 Gallery% 8 Achievement% 7 Wizard Run 0 Options --------- Layout 1 ASCII 0 Keyboard 0 Movement Numpad Keybinds 0 Fullscreen 1 Font 24/Smallcaps Map View 50x35 Zoom Use 0% Tactical HUD 0 Map Filters NONE Filters NONE Steam 1 RUN: 986a2183-e2af-404d-9600-277435f88972